bitfinex/quotes_ETHUSD_20260208
["timestamp","ask_amount","ask_price","bid_price","bid_amount"]
[1770535987750,0.002,2079.6,2079.3,4.97954483]
[1770535987946,0.002,2079.6,2079.3,0.03849856]
[1770535988351,0.002,2079.7,2079.3,4.97954483]
[1770535989059,4.9071827,2079.6,2079.0,0.03849856]
[1770535989248,1.20414056,2079.7,2079.0,0.03849856]
[1770535989454,1.20414056,2079.7,2079.0,4.97954483]
[1770535989765,0.002,2079.7,2079.0,4.97954483]
[1770535989951,0.002,2079.7,2079.1,4.94104627]
[1770535990268,0.002,2079.6,2079.1,4.94104627]
[1770535990558,0.002,2079.7,2079.1,4.94104627]
[1770535991454,0.002,2079.7,2079.2,1.20238553]
[1770535991757,0.002,2079.7,2079.2,4.94104627]
[1770535992147,0.002,2079.7,2079.0,9.54303549]
[1770535993047,0.002,2079.7,2079.1,1.2024412]
[1770535993247,0.002,2079.7,2079.2,0.001]
[1770535993557,0.002,2079.5,2079.2,0.001]
[1770535993934,0.002,2079.4,2079.2,0.001]
[1770535995048,4.71082976,2079.4,2079.0,0.001]
[1770535995370,4.71182976,2079.3,2079.0,0.001]
[1770535995542,5.91419383,2079.3,2079.0,0.001]
[1770535998843,0.002,2079.5,2079.0,0.001]
[1770535999068,1.20421316,2079.5,2079.0,0.001]
[1770535999787,4.71282976,2079.5,2079.0,0.001]
[1770536000480,4.71282976,2079.7,2079.0,0.001]
[1770536000647,4.71282976,2079.7,2079.0,4.619997]
[1770536000849,0.002,2079.7,2079.2,0.03849856]
[1770536001476,0.002,2079.7,2079.2,4.65749556]
[1770536001650,0.0008,2079.5,2079.3,1.2023277]
[1770536001854,0.002,2079.7,2079.3,5.8213247]
[1770536002346,0.002,2079.7,2079.4,4.618997]
[1770536003880,0.002,2079.7,2079.2,0.03849856]
[1770536004045,4.71282976,2079.7,2079.0,0.001]
[1770536004249,4.71282976,2079.7,2079.0,1.2034996]
[1770536004756,0.002,2079.7,2079.1,5.82143383]
[1770536005075,0.002,2079.7,2079.2,4.618997]
[1770536005657,0.002,2079.7,2079.2,5.82137602]
[1770536006177,0.002,2079.7,2079.3,0.001]
[1770536006473,0.002,2079.5,2079.3,0.001]
[1770536011276,3.86984286,2081.7,2079.3,4.619997]
[1770536011277,1.20192307,2080.0,2079.3,4.619997]
[1770536011893,5.91275283,2080.0,2079.3,4.619997]
[1770536013377,4.71082976,2079.9,2079.3,0.001]
[1770536014495,1.20192307,2080.0,2079.4,4.618997]
[1770536015674,6.33035713,2080.0,2079.3,1.20332054]
[1770536015875,6.33035713,2080.0,2079.3,0.001]
[1770536016406,1.32223312,2081.5,2080.4,4.74429493]
[1770536016569,5.12843406,2081.4,2080.3,4.1681358]
[1770536016774,5.12843406,2081.3,2080.4,3.36]
[1770536017399,4.80468937,2081.4,2080.5,5.19368357]
[1770536017698,1.20117234,2081.3,2080.6,0.44938864]
[1770536017872,4.626119,2081.2,2080.7,0.44938864]
[1770536018077,1.20117234,2081.3,2080.8,0.44938864]
[1770536018386,1.20117234,2081.3,2080.9,0.44938864]
[1770536018591,1.20117234,2081.3,2081.0,0.44938864]
[1770536018895,1.20117234,2081.3,2081.1,0.44938864]
[1770536019099,5.84064382,2081.4,2080.5,4.74429493]
[1770536019293,5.84064382,2081.4,2080.5,8.10429493]
[1770536019490,5.84064382,2081.4,2080.5,9.30592683]
[1770536019675,5.84064382,2081.4,2080.6,4.74429493]
[1770536020076,0.002,2080.9,2080.6,4.74429493]
[1770536020380,1.53364666,2081.6,2080.6,4.74429493]
[1770536021009,6.21229816,2081.6,2080.6,4.74429493]
[1770536021180,1.53364666,2081.6,2080.8,4.74429493]
[1770536021576,1.53364666,2081.6,2080.8,5.9457389]
[1770536022188,0.33260783,2081.6,2080.9,4.74429493]
[1770536022406,0.33260783,2081.6,2080.7,8.16598233]
[1770536022407,4.69140633,2081.5,2080.7,4.74429493]
[1770536022604,4.69140633,2081.5,2080.8,3.359]
[1770536022982,4.69140633,2081.5,2080.7,4.74429493]
[1770536023784,1.20111463,2081.4,2080.7,5.94580911]
[1770536024105,1.20111463,2081.4,2080.8,4.74429493]
[1770536025410,1.20109691,2081.5,2080.8,4.74429493]
[1770536025715,1.53364346,2081.6,2080.8,4.74429493]
[1770536025902,1.53364346,2081.6,2081.0,4.74429493]
[1770536026480,0.33260783,2081.6,2081.0,4.74429493]
[1770536026680,1.20092964,2081.8,2081.0,4.74429493]
[1770536027889,1.30311082,2082.1,2081.2,4.74429493]
[1770536028187,1.20071082,2082.1,2081.4,4.74429493]
[1770536029892,1.20059549,2082.3,2081.5,4.74429493]
[1770536030101,1.20042254,2082.6,2081.5,4.74429493]
[1770536030296,1.20042254,2082.6,2081.5,4.78279349]
[1770536031094,1.20042254,2082.6,2081.7,4.74429493]
[1770536031295,1.20042254,2082.6,2081.8,0.44469482]
[1770536031502,1.20042254,2082.6,2081.7,4.74429493]
[1770536031689,1.20042254,2082.6,2081.8,5.18868668]
[1770536031994,4.80169019,2082.8,2081.8,4.74429493]
[1770536032188,4.80169019,2082.8,2081.9,4.74429493]
[1770536033118,4.80169019,2082.8,2081.9,4.78279349]
[1770536033327,0.002,2082.4,2081.9,4.78279349]
[1770536033534,0.002,2082.4,2081.6,4.74429493]
[1770536034333,4.83576204,2082.4,2081.5,4.74429493]
[1770536034493,0.002,2082.4,2081.7,4.74429493]
[1770536036314,0.002,2082.4,2081.5,4.74429493]
[1770536036711,4.85766292,2082.4,2081.5,4.74429493]
[1770536037090,4.85766292,2082.4,2081.7,1.20092336]
[1770536037290,4.85766292,2082.4,2081.6,4.74429493]
[1770536037890,0.002,2082.4,2081.8,4.74429493]
[1770536038293,0.002,2082.4,2081.9,4.74429493]
[1770536038793,4.87915978,2082.4,2081.5,4.74429493]
[1770536039196,0.002,2082.4,2081.6,5.9452752]
[1770536039403,0.002,2082.4,2081.6,4.74429493]
[1770536039600,0.002,2082.4,2081.7,4.74429493]
[1770536040422,4.90008763,2082.4,2081.3,4.74429493]
[1770536042321,6.11919277,2082.3,2081.3,4.74429493]
[1770536046016,6.11919277,2082.3,2081.5,0.001]
[1770536046622,1.20071082,2082.1,2081.5,0.001]
[1770536047725,6.17791253,2082.1,2081.5,0.001]
[1770536048095,5.43473597,2082.0,2081.5,0.001]
[1770536048401,5.43489228,2081.9,2081.5,0.001]
[1770536048599,1.20088385,2081.8,2081.5,0.001]
[1770536048912,1.20088385,2081.8,2080.2,1.20176557]
[1770536048913,5.09190963,2081.6,2080.2,1.20176557]
[1770536049241,0.1024,2081.4,2080.6,5.23955999]
[1770536049427,0.44840858,2081.3,2080.6,5.23955999]
[1770536049633,0.44840858,2081.2,2080.6,5.23955999]
[1770536049829,0.44840858,2081.1,2080.6,5.23955999]
[1770536050026,5.09190963,2081.4,2080.6,5.23955999]
[1770536050230,0.44848033,2081.3,2080.6,5.23955999]
[1770536050527,0.44848033,2081.2,2080.6,6.44112062]
[1770536050729,4.80318505,2082.0,2080.9,5.23955999]
[1770536051029,6.19022045,2082.1,2080.9,5.23955999]
[1770536051030,0.44835691,2081.9,2080.9,5.23955999]
[1770536051325,0.44835691,2081.8,2080.9,5.23955999]
[1770536051534,0.44835691,2081.7,2080.9,5.23955999]
[1770536051741,0.44835691,2081.6,2080.9,5.23955999]
[1770536051902,0.1024,2082.0,2080.9,5.23955999]
[1770536052106,0.44836338,2081.9,2080.9,5.23955999]
[1770536052310,0.44836338,2081.8,2080.9,5.23955999]
[1770536052605,0.44836338,2081.7,2081.0,1.2013455]
[1770536052933,1.20080867,2082.0,2081.1,5.23955999]
[1770536053131,0.44834214,2081.9,2081.1,5.27805855]
[1770536053298,1.20080867,2082.0,2081.1,5.27805855]
[1770536053499,0.44844003,2081.9,2081.1,5.27805855]
[1770536053820,1.20080867,2082.0,2081.1,5.27805855]
[1770536054127,0.44843672,2081.9,2081.1,5.27805855]
[1770536054425,1.20080867,2082.0,2081.1,5.23955999]
[1770536054733,1.64938379,2081.9,2081.2,1.20123005]
[1770536054928,4.80244731,2082.3,2081.3,5.02646821]
[1770536055132,0.44852361,2082.2,2081.3,5.02646821]
[1770536055306,0.44852361,2082.1,2081.3,5.02646821]
[1770536055514,0.44852361,2082.0,2081.3,5.02646821]
[1770536055724,0.44852361,2081.9,2081.3,5.02646821]
[1770536055929,4.80244731,2082.3,2081.3,5.02646821]
[1770536056106,0.44863311,2082.2,2081.3,5.02646821]
[1770536056432,0.44863311,2082.1,2081.3,5.02646821]
[1770536056628,4.80244731,2082.3,2081.3,5.02646821]
[1770536056629,0.44863311,2082.0,2081.3,5.02646821]
[1770536056813,0.44863311,2081.9,2081.3,6.22761538]
[1770536057000,1.20079422,2082.0,2081.3,6.22761538]
[1770536057206,0.4487301,2081.9,2081.3,6.22761538]
[1770536057546,1.20079422,2082.0,2081.3,6.22761538]
[1770536057709,0.44874981,2081.9,2081.3,6.22761538]
[1770536057911,1.20079422,2082.0,2081.3,6.22761538]
[1770536058139,0.44874969,2081.9,2081.3,6.22761538]
[1770536058335,1.20079422,2082.0,2081.3,6.22761538]
[1770536058630,0.44874915,2081.9,2081.3,6.22761538]
[1770536058840,1.20079422,2082.0,2081.5,0.001]
[1770536059133,0.44874954,2081.9,2081.5,0.001]
[1770536059309,1.20079422,2082.0,2081.5,0.001]
[1770536059633,0.44875568,2081.9,2081.5,5.02746821]
[1770536059834,1.20079422,2082.0,2081.5,5.02746821]
[1770536060144,0.44875585,2081.9,2081.5,5.02746821]
[1770536060353,1.20079422,2082.0,2081.5,5.02746821]
[1770536060630,0.44877776,2081.9,2081.5,5.02746821]
[1770536060836,1.20079422,2082.0,2081.5,5.02746821]
[1770536061003,0.44878548,2081.9,2081.5,5.02746821]
[1770536061204,4.80489113,2082.1,2081.5,5.02746821]
[1770536061404,0.44881091,2082.0,2081.5,5.02746821]
[1770536061631,0.44881091,2081.9,2081.5,5.02746821]
[1770536061833,0.44881091,2081.8,2081.5,5.02746821]
[1770536062129,0.002,2082.1,2081.5,5.02746821]
[1770536062334,0.4488689,2082.0,2081.5,5.02746821]
[1770536062546,0.4488689,2081.9,2081.5,5.02746821]
[1770536062721,0.4488689,2081.8,2081.5,5.02746821]
[1770536062906,0.002,2082.1,2081.5,5.02746821]
[1770536063232,0.44890796,2082.0,2081.5,5.02746821]
[1770536063429,0.44890796,2081.9,2081.5,5.02746821]
[1770536063629,0.44890796,2081.8,2081.5,0.001]
[1770536063829,0.44901347,2081.7,2081.5,0.001]
[1770536064037,1.20273439,2082.1,2081.5,0.001]
[1770536064207,0.44904196,2082.0,2081.5,0.001]
[1770536064531,0.44904196,2081.9,2081.5,0.001]
[1770536064766,1.20273439,2082.1,2081.5,6.22852282]
[1770536064767,0.44904196,2081.8,2081.5,6.22852282]
[1770536064930,1.20271967,2082.1,2081.5,5.02746821]
[1770536065127,0.44907765,2082.0,2081.5,5.02746821]
[1770536065436,0.44907765,2081.9,2081.5,5.02746821]
[1770536065623,0.44907765,2081.8,2081.5,5.02746821]
[1770536065822,0.44907765,2081.7,2081.5,5.02746821]
[1770536066133,1.200788,2082.0,2081.5,5.02746821]
[1770536066326,0.44911556,2081.9,2081.5,5.02746821]
[1770536066533,0.44911556,2081.8,2081.5,0.001]
[1770536066711,0.44911556,2081.7,2081.5,0.001]
[1770536066916,1.200788,2082.0,2081.5,5.02746821]
[1770536067128,0.44915046,2081.9,2081.5,5.02746821]
[1770536067437,4.80485671,2082.1,2081.5,6.22851782]
[1770536067438,0.002,2082.1,2081.5,6.22851782]
[1770536069120,0.002,2082.1,2081.5,1.22851782]
[1770536069921,0.002,2082.1,2081.5,1.26701638]
[1770536070919,0.002,2082.1,2081.5,1.26700821]
[1770536072229,0.002,2082.1,2081.5,0.02746821]
[1770536072429,5.34162472,2082.1,2081.4,1.20110153]
[1770536072629,5.34162472,2082.1,2081.2,1.20121938]
[1770536072831,5.34162472,2082.1,2081.2,6.22768759]
[1770536074037,1.20076849,2082.0,2081.2,6.22768759]
[1770536074944,6.54039321,2082.0,2081.2,6.22768759]
[1770536076619,0.0008,2081.9,2081.2,6.22768759]
[1770536077537,0.0008,2081.9,2081.2,6.26618615]
[1770536079431,0.44933408,2081.8,2081.2,6.26618615]
[1770536079635,0.44933408,2081.7,2081.2,6.26618615]
[1770536079952,0.0008,2081.9,2081.3,5.01030878]
[1770536080649,0.0008,2081.9,2081.3,6.21143665]
[1770536081652,5.35208065,2081.9,2081.5,0.7]
[1770536083036,6.55292703,2081.9,2081.5,0.7]
[1770536083548,5.35208065,2081.9,2081.5,0.7]
[1770536083951,0.0008,2081.9,2081.5,1.90102738]
[1770536084248,0.0008,2081.9,2081.5,1.90104565]
[1770536084762,0.0008,2081.9,2081.5,0.7]
[1770536086435,0.0008,2081.9,2081.5,1.90103943]
[1770536086636,0.0008,2081.9,2081.5,0.7]
[1770536086836,0.0008,2081.9,2081.5,1.90105323]
[1770536087361,0.0008,2081.9,2081.5,6.91136201]
[1770536088263,0.0008,2081.9,2081.5,5.71030878]
[1770536088760,0.0008,2081.9,2081.5,0.7]
[1770536089335,0.002,2081.8,2081.5,0.7]
[1770536090955,0.002,2081.8,2081.4,0.001]
[1770536091769,0.45058137,2081.7,2081.4,0.001]
[1770536091967,0.45058137,2081.6,2081.4,0.001]
[1770536092148,0.002,2081.8,2081.4,0.001]
[1770536093366,0.002,2081.8,2081.4,5.01130878]
[1770536094976,5.35328065,2081.8,2081.4,0.001]
[1770536095268,5.35328065,2081.8,2080.9,1.20137747]
[1770536095461,5.35128065,2081.6,2080.9,6.21168625]
[1770536099472,6.55228506,2081.6,2080.9,6.21168625]
[1770536100542,6.55228506,2081.6,2080.8,0.03849856]
[1770536100543,5.35128065,2081.5,2080.8,0.03849856]
[1770536100763,5.35128065,2081.5,2080.7,1.20148545]
[1770536101551,0.002,2081.8,2081.2,5.04880734]
[1770536102856,0.002,2081.6,2081.2,5.04880734]
[1770536104077,0.45009934,2081.5,2081.2,6.24999705]
[1770536104379,5.35208065,2081.9,2081.2,6.24999705]
[1770536106083,0.0008,2081.9,2081.2,6.24999705]
[1770536106392,11.62144922,2082.5,2081.6,5.20733219]
[1770536106578,1.53143752,2082.5,2081.8,5.20733219]
[1770536108066,0.3309456,2082.5,2081.8,5.20733219]
[1770536108267,0.3309456,2082.5,2081.9,6.44665691]
[1770536110173,0.3309456,2082.5,2082.1,5.20733219]
[1770536110379,0.3309456,2082.5,2082.1,6.40800208]
[1770536111558,0.0008,2082.7,2082.1,6.40800208]
[1770536111783,5.65722569,2082.6,2081.3,5.20733219]
[1770536111989,5.65722569,2082.6,2081.5,1.20101084]
[1770536112198,5.65722569,2082.6,2081.6,5.20733219]
[1770536112373,6.85770588,2082.5,2081.7,6.40825128]
[1770536112555,0.0008,2082.7,2081.7,6.40825128]
[1770536112556,6.85842909,2082.7,2081.7,6.40825128]
[1770536113609,6.85842909,2082.7,2081.7,1.20091909]
[1770536114586,6.85842909,2082.7,2081.7,5.50293486]
[1770536116392,5.28438922,2082.5,2081.9,0.7]
[1770536116598,6.48488064,2082.5,2081.9,0.7]
[1770536116764,5.73095354,2082.4,2081.9,0.7]
[1770536116957,5.28238922,2082.4,2081.9,0.7]
[1770536117797,5.28238922,2082.4,2081.7,1.2009232]
[1770536118570,0.002,2082.5,2081.7,5.50293486]
[1770536118797,5.28438922,2082.5,2081.7,5.50293486]
[1770536119160,0.002,2082.5,2081.7,5.50293486]
[1770536120988,0.002,2082.5,2081.9,5.50293486]
[1770536122181,5.28438922,2082.5,2082.1,0.7]
[1770536122381,5.28238922,2082.3,2081.5,1.20102207]
[1770536122571,5.28238922,2082.3,2081.6,1.20099734]
[1770536123084,1.64904547,2082.2,2081.4,4.80539571]
[1770536123397,5.28238922,2082.1,2081.4,4.80539571]
[1770536123774,0.4484205,2082.0,2081.4,1.20211463]
[1770536123978,6.48302262,2082.3,2081.4,6.70504949]
[1770536124301,0.44839676,2082.2,2081.4,6.70504949]
[1770536124606,6.48302262,2082.3,2081.4,6.70504949]
[1770536124781,5.73080841,2082.2,2081.4,6.70504949]
[1770536124983,5.28238922,2082.2,2081.4,6.70504949]
[1770536125188,6.48302262,2082.3,2081.4,6.70504949]
[1770536125390,5.73079827,2082.2,2081.4,6.70504949]
[1770536125587,5.28238922,2082.2,2081.4,6.70504949]
[1770536125902,0.44849412,2082.1,2081.4,6.70504949]
[1770536126110,5.28238922,2082.1,2081.4,6.70504949]
[1770536126314,6.48302262,2082.3,2081.4,6.70504949]
[1770536126607,0.44857801,2082.2,2081.4,6.70504949]
[1770536126790,0.44857801,2082.1,2081.4,6.70504949]
[1770536126987,6.48302262,2082.3,2081.4,6.70504949]
[1770536127321,0.002,2082.5,2081.6,5.50293486]
[1770536127322,5.28438922,2082.5,2081.6,5.50293486]
[1770536127507,0.44864197,2082.4,2081.6,5.50293486]
[1770536127802,0.44864197,2082.3,2081.6,5.50293486]
[1770536128003,5.28438922,2082.5,2081.6,5.50293486]
[1770536128202,0.44861757,2082.4,2081.6,5.50293486]
[1770536128403,0.44861757,2082.3,2081.6,5.50293486]
[1770536128579,0.002,2082.5,2081.6,5.50293486]
[1770536128784,0.448715,2082.4,2081.6,5.50293486]
[1770536128985,0.448715,2082.3,2081.6,5.50293486]
[1770536129185,0.002,2082.5,2081.6,5.50293486]
[1770536129509,0.44871458,2082.4,2081.7,6.70387639]
[1770536129704,0.44871458,2082.3,2081.7,6.70387639]
[1770536129908,0.002,2082.5,2081.7,6.70387639]
[1770536130109,0.44883027,2082.4,2081.7,6.70387639]
[1770536130310,0.44883027,2082.3,2081.7,6.70387639]
[1770536130523,0.44887065,2082.2,2081.7,6.70387639]
[1770536130683,6.48487197,2082.5,2081.7,6.70387639]
[1770536130888,5.73126107,2082.4,2081.6,1.20196004]
[1770536131116,5.28238922,2082.2,2081.6,1.20196004]
[1770536131301,0.44887185,2082.1,2081.6,1.20196004]
[1770536131509,6.48304335,2082.2,2081.6,0.001]
[1770536131807,0.44918711,2082.1,2081.6,0.001]
[1770536132015,6.48304335,2082.2,2081.6,0.001]
[1770536132349,5.7315769,2082.1,2081.6,0.001]
[1770536132612,5.28238922,2081.9,2081.6,0.001]
[1770536132814,0.44918768,2081.8,2081.6,0.001]
[1770536132988,0.44918768,2081.7,2081.6,0.001]
[1770536133194,5.28238922,2082.1,2081.6,0.001]
[1770536134198,6.48301304,2082.3,2081.6,0.001]
[1770536134591,1.20059786,2082.3,2081.6,0.001]
[1770536134797,5.28238922,2082.2,2081.6,0.001]
[1770536135812,6.8040967,2082.3,2081.6,0.001]
[1770536137500,5.60349884,2082.1,2081.6,0.001]
[1770536137924,6.8040967,2082.3,2081.6,0.001]
[1770536139420,6.8040967,2082.3,2081.6,5.81935443]
[1770536140217,6.8040967,2082.3,2081.6,0.001]
[1770536141406,5.60349884,2082.1,2081.6,0.001]
[1770536142005,5.60349884,2082.1,2081.8,0.001]
[1770536142816,0.002,2082.5,2081.8,5.81935443]
[1770536143535,0.002,2082.5,2081.9,1.20082616]
[1770536145210,0.44954531,2082.4,2081.9,1.20082616]
[1770536145403,0.44954531,2082.3,2081.9,1.20082616]
[1770536145606,0.44954531,2082.2,2081.8,10.62288757]
[1770536145828,0.002,2082.5,2081.8,10.62288757]
[1770536148413,0.002,2082.5,2081.8,4.80453314]
[1770536148638,0.002,2082.5,2081.9,5.85685299]
[1770536149832,0.002,2082.5,2082.0,1.20076849]
[1770536150333,0.002,2082.5,2082.0,7.01912292]
[1770536152754,0.002,2082.5,2081.9,1.23928125]
[1770536152951,5.60549884,2082.5,2081.8,0.001]
[1770536153254,5.60549884,2082.5,2081.8,1.20186861]
[1770536153434,5.60549884,2082.5,2081.8,0.001]
[1770536154446,5.60549884,2082.5,2081.9,1.20079689]
[1770536154653,5.60549884,2082.5,2081.8,1.20184825]
[1770536154874,6.80599499,2082.5,2081.8,0.001]
[1770536155435,6.80599499,2082.5,2082.2,0.001]
[1770536155634,0.002,2082.3,2081.8,0.001]
[1770536156037,5.60549884,2082.3,2081.8,0.001]
[1770536157730,0.449319,2082.2,2081.8,0.001]
[1770536157929,0.449319,2082.1,2081.8,0.001]
[1770536158131,6.80609768,2082.3,2081.8,0.001]
[1770536158327,0.44933117,2082.2,2081.8,0.001]
[1770536158532,0.44933117,2082.1,2081.8,0.001]
[1770536158738,5.60549884,2082.3,2081.8,0.001]
[1770536158939,0.44932932,2082.2,2081.8,0.001]
[1770536159132,0.44932932,2082.1,2081.8,0.001]
[1770536159365,0.002,2082.3,2081.8,0.001]
[1770536159545,0.44931873,2082.2,2081.8,0.001]
[1770536159744,0.44931873,2082.1,2081.8,0.001]
[1770536160063,6.05283858,2082.0,2081.8,0.001]
[1770536160264,0.44933974,2081.9,2081.8,0.001]
[1770536160462,6.05283858,2081.9,2081.4,0.001]
[1770536160671,6.48,2082.2,2081.4,0.001]
[1770536160672,0.44933974,2081.8,2081.4,0.001]
[1770536160839,0.44933974,2081.7,2081.4,0.001]
[1770536161042,12.08349884,2082.2,2081.4,0.03949856]
[1770536161453,6.80420966,2082.1,2081.4,1.24060873]
[1770536161650,6.80420966,2082.1,2081.4,0.03949856]
[1770536161846,6.80420966,2082.1,2081.4,0.001]
[1770536162569,6.80420966,2082.1,2081.1,0.001]
[1770536163546,5.60349884,2081.7,2081.1,0.001]
[1770536164458,6.80447937,2081.7,2081.1,0.001]
[1770536165059,5.60349884,2081.5,2081.1,0.001]
[1770536165258,5.60349884,2081.3,2081.1,0.001]
[1770536165647,5.60349884,2081.3,2080.9,0.001]
[1770536167048,7.00695605,2081.2,2080.9,0.001]
[1770536167253,5.805726,2081.1,2080.4,0.001]
[1770536168441,5.805726,2081.1,2080.9,0.001]
[1770536168647,5.805726,2081.1,2080.4,0.001]
[1770536169042,5.805726,2080.9,2080.4,0.001]
[1770536169256,5.805726,2080.9,2080.0,0.001]
[1770536169841,5.805726,2080.9,2080.0,5.57060761]
[1770536170046,1.2013455,2081.0,2080.0,5.57060761]
[1770536171167,1.2013455,2081.0,2080.1,6.73297434]
[1770536171355,7.0070715,2081.0,2080.1,5.53110905]
[1770536171742,1.20123005,2081.2,2080.1,5.53110905]
[1770536172183,5.805726,2081.1,2080.1,5.53110905]
[1770536172680,5.805726,2081.1,2080.0,0.001]
[1770536173173,1.20140323,2080.9,2080.4,0.03849856]
[1770536175552,4.80541332,2081.0,2080.4,0.03849856]
[1770536176576,10.27778248,2081.0,2080.4,0.03849856]
[1770536176778,5.47236916,2080.9,2080.4,0.03849856]
[1770536177073,5.47236916,2080.9,2080.1,0.03849856]
[1770536177472,5.47236916,2080.9,2080.1,7.16151966]
[1770536177781,10.27778248,2081.0,2080.1,7.16151966]
[1770536178266,5.47236916,2080.9,2080.1,5.95965916]
[1770536178579,5.47236916,2080.9,2080.1,0.03849856]
[1770536179351,4.80541332,2081.0,2080.1,7.16152319]
[1770536179862,5.47236916,2081.0,2080.1,7.16152319]
[1770536180680,5.47236916,2081.0,2080.3,0.001]
[1770536181488,5.47236916,2080.8,2080.3,0.001]
[1770536182559,6.67388787,2080.7,2080.3,0.001]
[1770536183461,1.20151871,2080.7,2080.3,0.001]
[1770536183664,1.20150333,2080.8,2080.3,0.001]
[1770536184570,4.80547043,2081.0,2080.3,0.001]
[1770536184774,0.44700431,2080.9,2080.3,0.001]
[1770536184975,0.44700431,2080.8,2080.3,0.001]
[1770536185177,4.80547043,2081.0,2080.3,0.001]
[1770536185479,0.44702549,2080.9,2080.3,0.001]
[1770536185784,0.44702549,2080.8,2080.3,0.001]
[1770536185956,4.80547043,2081.0,2080.3,0.001]
[1770536186157,0.44718696,2080.9,2080.3,0.001]
[1770536186377,0.44718696,2080.8,2080.3,0.001]
[1770536186577,4.80547043,2081.0,2080.3,0.001]
[1770536186780,0.44741313,2080.9,2080.3,0.001]
[1770536186983,0.44741313,2080.8,2080.3,0.001]
[1770536187175,4.80547043,2081.0,2080.3,0.001]
[1770536187358,0.44744293,2080.9,2080.3,0.001]
[1770536187560,0.44744293,2080.8,2080.3,0.001]
[1770536187761,0.44744293,2080.7,2080.3,0.001]
[1770536187981,10.27783959,2081.0,2080.3,0.001]
[1770536188292,5.92006563,2080.9,2080.3,0.001]
[1770536188476,0.44769647,2080.8,2080.3,0.001]
[1770536188785,1.64922135,2080.7,2080.3,0.001]
[1770536188984,1.20152488,2080.7,2080.3,0.001]
[1770536189389,0.44849472,2080.6,2080.3,0.001]
[1770536189556,1.20152488,2080.7,2080.3,0.001]
[1770536189758,0.44849619,2080.6,2080.3,0.001]
[1770536189955,1.20152488,2080.7,2080.3,0.001]
[1770536190170,0.44849685,2080.6,2080.3,0.001]
[1770536190485,1.20152488,2080.7,2080.3,0.001]
[1770536190685,1.65012271,2080.6,2080.3,0.001]
[1770536190986,1.20159876,2080.6,2080.3,0.001]
[1770536191168,0.44853674,2080.5,2080.3,0.001]
[1770536191488,1.20159876,2080.6,2080.3,0.001]
[1770536191679,0.44882368,2080.5,2080.3,0.001]
[1770536191991,1.20151039,2080.8,2080.3,0.001]
[1770536192192,0.44882266,2080.7,2080.3,0.001]
[1770536192411,0.44882266,2080.6,2080.3,0.001]
[1770536192562,0.44882266,2080.5,2080.3,0.001]
[1770536192763,6.67387955,2080.8,2080.3,0.001]
[1770536192977,0.4491703,2080.7,2080.3,0.001]
[1770536193290,0.4491703,2080.6,2080.3,0.001]
[1770536193473,6.67387955,2080.8,2080.5,0.001]
[1770536193669,0.44945531,2080.7,2080.3,0.001]
[1770536193890,0.44945531,2080.6,2080.3,0.001]
[1770536194187,0.44945531,2080.5,2080.3,0.001]
[1770536194385,0.44945531,2080.4,2080.3,0.001]
[1770536194693,1.20151039,2080.8,2080.3,0.001]
[1770536196902,1.20351039,2080.8,2080.3,0.001]
[1770536201677,6.8932651,2080.8,2080.3,0.001]
[1770536205512,6.8932651,2080.8,2080.0,5.55482545]
[1770536206513,0.45085412,2080.7,2080.0,5.55482545]
[1770536206694,0.45085412,2080.6,2080.0,5.55482545]
[1770536206888,0.45085412,2080.5,2080.0,5.55482545]
[1770536207093,0.45085412,2080.4,2080.0,5.55482545]
[1770536207296,0.45085412,2080.3,2080.0,5.55482545]
[1770536207616,0.45086243,2080.2,2080.0,5.55482545]
[1770536207816,1.20166226,2080.5,2080.0,5.55482545]
[1770536212802,1.20166226,2080.5,2080.0,0.001]
[1770536212988,6.89141697,2080.5,2080.0,0.001]
[1770536213803,5.68975471,2080.4,2080.0,0.001]
[1770536215110,1.20174974,2080.3,2080.0,0.001]
[1770536215628,6.89150445,2080.3,2080.2,0.001]
[1770536215802,6.89150445,2080.3,2080.0,0.001]
[1770536217011,1.20174974,2080.3,2080.0,0.001]
[1770536217320,1.20169198,2080.4,2080.0,0.001]
[1770536218112,1.20367803,2080.5,2080.0,5.55482545]
[1770536218817,6.89343274,2080.5,2080.0,0.001]
[1770536221197,9.8555747,2080.4,2080.0,0.001]
[1770536221529,5.68975471,2080.1,2079.5,0.001]
[1770536221825,8.33163998,2080.2,2079.5,0.001]
[1770536221826,9.8555747,2079.9,2079.5,0.001]
[1770536222195,5.68975471,2079.8,2079.5,0.001]
[1770536222696,5.68975471,2079.8,2079.4,0.001]
[1770536223501,1.20196716,2080.0,2079.4,5.55482545]
[1770536225711,10.49738232,2080.1,2079.4,5.55482545]
[1770536225895,9.62672065,2080.0,2079.4,5.55482545]
[1770536226398,9.62672065,2080.0,2079.4,0.001]
[1770536227417,9.62672065,2080.0,2079.6,0.0008]
[1770536227617,1.20198086,2079.9,2079.6,0.0008]
[1770536227818,1.20198086,2079.9,2079.4,0.001]
[1770536228533,4.16581999,2079.8,2079.6,0.001]
[1770536228700,4.16581999,2079.8,2079.4,0.001]
[1770536229204,1.20189765,2080.1,2079.4,5.8937318]
[1770536229813,1.20189765,2080.1,2079.5,7.09494387]
[1770536230214,0.002,2080.3,2079.5,7.09494387]
[1770536230624,0.002,2080.3,2079.8,5.8927318]
[1770536231705,0.002,2080.3,2080.0,5.8927318]
[1770536234009,0.002,2080.3,2080.1,6.96442362]
[1770536237735,0.002,2080.3,2080.1,1.20186529]
[1770536243137,0.002,2080.3,2080.1,6.96442362]
[1770536243435,0.002,2080.3,2080.1,5.76255833]
[1770536243838,0.002,2080.3,2080.1,6.96441068]
[1770536245742,0.002,2080.3,2080.1,5.76255833]
[1770536245956,0.002,2080.3,2080.1,6.96441514]
[1770536251042,0.002,2080.3,2080.1,5.76255833]
[1770536251339,0.002,2080.3,2080.0,6.96444075]
[1770536252243,0.002,2080.3,2080.1,1.20185648]
[1770536253547,0.002,2080.3,2080.1,6.96441481]
[1770536257129,0.002,2080.5,2080.1,6.96441481]
[1770536257960,0.002,2080.5,2080.1,7.00291337]
[1770536259922,0.002,2080.3,2080.1,7.00291337]